bitfinex-derivatives/quotes_BTCF0:USTF0_20240917
["timestamp","ask_amount","ask_price","bid_price","bid_amount"]
[1726568701383,8.573e-05,59133.0,59131.0,0.084562]
[1726568701384,8.573e-05,59133.0,59132.0,0.08456]
[1726568701571,8.573e-05,59133.0,59132.0,0.08496]
[1726568703969,0.20823128,59133.0,59129.0,0.21023296]
[1726568704171,0.30838251,59132.0,59131.0,0.329124]
[1726568704365,0.13960397,59132.0,59131.0,0.329124]
[1726568704571,0.087635,59132.0,59131.0,1.436484]
[1726568704976,0.20822082,59132.0,59131.0,1.436484]
[1726568705182,0.25548881,59132.0,59131.0,1.436484]
[1726568705373,0.088035,59132.0,59131.0,1.436484]
[1726568707179,0.089035,59132.0,59131.0,1.437484]
[1726568707382,0.089035,59132.0,59131.0,1.277484]
[1726568707772,0.089035,59132.0,59131.0,1.278484]
[1726568707972,0.089035,59132.0,59131.0,0.678484]
[1726568708677,0.089035,59132.0,59131.0,0.171124]
[1726568709574,0.04216701,59132.0,59131.0,0.678484]
[1726568710189,0.14093006,59132.0,59131.0,0.678484]
[1726568711480,0.089035,59132.0,59131.0,0.171124]
[1726568711679,0.04216701,59132.0,59131.0,0.171124]
[1726568711987,0.0018,59132.0,59131.0,0.171124]
[1726568713381,0.0018,59132.0,59131.0,0.678484]
[1726568713989,0.0018,59132.0,59131.0,0.171124]
[1726568716700,0.1618,59132.0,59131.0,0.086562]
[1726568716998,0.1618,59132.0,59131.0,0.002]
[1726568716999,0.33092,59132.0,59131.0,0.002]
[1726568718086,0.33092,59132.0,59131.0,0.086562]
[1726568718087,0.24636,59132.0,59131.0,0.086562]
[1726568718986,0.32792943,59132.0,59131.0,0.086562]
[1726568719793,0.28410533,59132.0,59131.0,0.086562]
[1726568720592,0.64490533,59132.0,59131.0,0.002]
[1726568720787,0.60716,59132.0,59131.0,0.002]
[1726568720992,0.64479697,59132.0,59131.0,0.002]
[1726568722091,0.76251991,59132.0,59131.0,0.002]
[1726568722484,0.413695,59129.0,59128.0,0.00166641]
[1726568722696,0.084572,59124.0,59123.0,0.084572]
[1726568723000,0.32585758,59124.0,59123.0,0.084572]
[1726568723397,0.47135758,59124.0,59123.0,0.084572]
[1726568723695,0.47035758,59124.0,59123.0,0.084572]
[1726568724194,0.83115758,59124.0,59123.0,0.084572]
[1726568725398,1.03452671,59124.0,59123.0,0.085572]
[1726568725798,0.88306753,59124.0,59123.0,0.001]
[1726568726791,1.05110425,59124.0,59123.0,0.001]
[1726568726988,0.91790872,59124.0,59123.0,0.19763763]
[1726568727187,0.87559757,59124.0,59123.0,0.11403337]
[1726568727387,0.87559757,59124.0,59123.0,0.19860637]
[1726568727596,0.87559757,59124.0,59123.0,0.28229575]
[1726568728302,0.87559757,59124.0,59123.0,0.28231183]
[1726568728894,0.88722035,59124.0,59123.0,0.16927846]
[1726568729996,0.88722035,59124.0,59123.0,0.28205372]
[1726568730202,0.88722035,59124.0,59123.0,0.19834826]
[1726568730400,0.88722035,59124.0,59123.0,0.1692921]
[1726568731295,0.88722035,59124.0,59123.0,0.085573]
[1726568731993,0.88722035,59124.0,59123.0,0.1692921]
[1726568732191,0.88722035,59124.0,59123.0,0.085573]
[1726568732398,0.88762035,59124.0,59123.0,0.085573]
[1726568732598,0.71958363,59124.0,59123.0,0.085573]
[1726568733493,0.71958363,59124.0,59123.0,0.001]
[1726568734098,0.80415563,59124.0,59123.0,0.001]
[1726568735909,0.084573,59123.0,59122.0,0.084574]
[1726568736109,0.084973,59123.0,59122.0,0.084574]
[1726568737906,0.269546,59123.0,59122.0,0.084574]
[1726568738108,0.271546,59123.0,59122.0,0.084574]
[1726568738806,0.269546,59123.0,59122.0,0.084574]
[1726568739007,0.272546,59123.0,59122.0,0.084574]
[1726568740703,0.187973,59123.0,59122.0,0.084574]
[1726568742003,0.247973,59123.0,59122.0,0.084574]
[1726568742713,0.244973,59123.0,59122.0,0.085574]
[1726568742915,0.245973,59123.0,59122.0,0.085574]
[1726568745021,0.245973,59123.0,59122.0,0.086574]
[1726568745207,0.245973,59123.0,59122.0,0.28315042]
[1726568745403,0.244973,59123.0,59122.0,0.19943132]
[1726568745609,0.245973,59123.0,59122.0,0.19943132]
[1726568749216,0.0014,59123.0,59122.0,0.171149]
[1726568749418,0.0014,59123.0,59122.0,0.255724]
[1726568749718,0.0014,59123.0,59122.0,0.30603977]
[1726568750312,0.0014,59123.0,59122.0,0.255724]
[1726568751409,0.0014,59123.0,59122.0,0.30604932]
[1726568751608,0.0014,59123.0,59122.0,0.255724]
[1726568752319,0.0014,59123.0,59122.0,0.171149]
[1726568753219,0.0014,59123.0,59122.0,0.255724]
[1726568754207,0.0014,59123.0,59122.0,0.3228117]
[1726568754407,0.0014,59123.0,59122.0,0.255724]
[1726568755025,0.0014,59123.0,59122.0,0.3228117]
[1726568755418,0.0014,59123.0,59122.0,0.255724]
[1726568755921,0.0014,59123.0,59122.0,0.3228117]
[1726568756523,0.0014,59123.0,59122.0,0.255724]
[1726568757220,0.16,59128.0,59125.0,0.08457]
[1726568757516,0.16,59128.0,59127.0,0.0004]
[1726568757723,0.16,59128.0,59127.0,0.24716848]
[1726568758109,0.16,59128.0,59127.0,0.33173548]
[1726568758312,0.161,59128.0,59127.0,0.33173548]
[1726568758717,0.162,59128.0,59127.0,0.33173548]
[1726568759111,0.161,59128.0,59127.0,0.33173548]
[1726568759314,0.162,59128.0,59127.0,0.33173548]
[1726568759816,0.162,59128.0,59127.0,0.33144527]
[1726568760120,0.162,59128.0,59127.0,0.19754583]
[1726568760514,0.162,59128.0,59127.0,0.33153484]
[1726568761026,0.162,59128.0,59127.0,0.34284103]
[1726568763824,0.088451,59139.0,59135.0,24.65398028]
[1726568764021,0.57451,59136.0,59135.0,24.65478028]
[1726568764224,0.57451,59136.0,59135.0,24.72182642]
[1726568764628,0.58608111,59136.0,59135.0,24.65478028]
[1726568764930,0.50152611,59136.0,59135.0,24.65478028]
[1726568765320,0.58608111,59136.0,59135.0,24.65578028]
[1726568765519,0.58608111,59136.0,59135.0,24.65678028]
[1726568765719,0.50152611,59136.0,59135.0,24.65678028]
[1726568766030,0.58608111,59136.0,59135.0,24.65678028]
[1726568767824,1.77795611,59136.0,59135.0,24.65678028]
[1726568768023,1.77795611,59136.0,59135.0,22.94618028]
[1726568768024,1.78640947,59136.0,59135.0,22.94618028]
[1726568769630,1.78640947,59136.0,59135.0,22.46388028]
[1726568770018,1.84640947,59136.0,59135.0,22.46388028]
[1726568771029,1.69950947,59136.0,59135.0,22.12388028]
[1726568771222,1.54100947,59136.0,59135.0,22.12388028]
[1726568772427,1.73639669,59136.0,59135.0,21.98848853]
[1726568773931,1.73639669,59136.0,59135.0,21.64848853]
[1726568777028,1.73639669,59136.0,59135.0,21.30848853]
[1726568777326,2.45799669,59136.0,59135.0,21.30848853]
[1726568778137,2.54255169,59136.0,59135.0,21.30848853]
[1726568778334,2.45799669,59136.0,59135.0,21.30848853]
[1726568778726,2.61195519,59136.0,59135.0,20.6289023]
[1726568778922,2.61195519,59136.0,59135.0,20.54751631]
[1726568779229,2.48189646,59136.0,59135.0,20.53362098]
[1726568779933,2.63385337,59136.0,59135.0,20.53362098]
[1726568780133,2.48189646,59136.0,59135.0,20.53362098]
[1726568780331,2.42998748,59136.0,59135.0,20.52519362]
[1726568780526,1.82998748,59136.0,59135.0,20.52519362]
[1726568781029,2.42998748,59136.0,59135.0,20.52519362]
[1726568781633,2.56500589,59136.0,59135.0,20.52519362]
[1726568781844,2.42998748,59136.0,59135.0,20.52519362]
[1726568782241,2.56499133,59136.0,59135.0,20.52519362]
[1726568782430,2.56498795,59136.0,59135.0,20.52519362]
[1726568782743,2.42998748,59136.0,59135.0,20.18519362]
[1726568785944,2.42386695,59136.0,59135.0,20.18519362]
[1726568786431,2.42386695,59136.0,59135.0,19.84519362]
[1726568788541,2.42386695,59136.0,59135.0,19.79704556]
[1726568789047,2.42386695,59136.0,59135.0,19.4143971]
[1726568789238,2.47578409,59136.0,59135.0,19.4143971]
[1726568789947,2.47578409,59136.0,59135.0,19.4021471]
[1726568790146,2.47578409,59136.0,59135.0,19.3437671]
[1726568790336,2.47578409,59136.0,59135.0,19.3309671]
[1726568790646,2.5603214,59136.0,59135.0,19.3309671]
[1726568790841,2.5603214,59136.0,59135.0,19.20054042]
[1726568791139,2.4757664,59136.0,59135.0,19.20054042]
[1726568791546,2.5603214,59136.0,59135.0,19.20054042]
[1726568791746,2.5603214,59136.0,59135.0,18.91424408]
[1726568792046,2.4157664,59136.0,59135.0,18.48339408]
[1726568792437,2.5003214,59136.0,59135.0,18.29627108]
[1726568792634,2.4157664,59136.0,59135.0,18.29627108]
[1726568793544,2.4157664,59136.0,59135.0,18.25217108]
[1726568794050,2.56765987,59136.0,59135.0,18.22677108]
[1726568794244,2.54584835,59136.0,59135.0,17.90515331]
[1726568794436,2.54584835,59136.0,59135.0,17.90007324]
[1726568795040,2.54584835,59136.0,59135.0,17.54007324]
[1726568795335,2.54326051,59136.0,59135.0,17.26923725]
[1726568795543,2.54326051,59136.0,59135.0,17.26415719]
[1726568795949,2.54326051,59136.0,59135.0,17.25415719]
[1726568796350,1.82166051,59136.0,59135.0,17.25415719]
[1726568796642,2.47384556,59136.0,59135.0,17.25415719]
[1726568796855,2.54326051,59136.0,59135.0,17.25415719]
[1726568797249,2.62781551,59136.0,59135.0,16.98824619]
[1726568797442,2.54326051,59136.0,59135.0,16.96793386]
[1726568798053,2.54326051,59136.0,59135.0,16.60793386]
[1726568799446,2.54326051,59136.0,59135.0,16.58143386]
[1726568799646,2.54326051,59136.0,59135.0,16.54092592]
[1726568800255,2.54325646,59136.0,59135.0,16.54092592]
[1726568801245,2.54325646,59136.0,59135.0,16.53092592]
[1726568801450,2.54325646,59136.0,59135.0,16.26009627]
[1726568802550,2.36125714,59136.0,59135.0,16.26009627]
[1726568802745,2.41317447,59136.0,59135.0,16.26009627]
[1726568804248,2.41317534,59136.0,59135.0,15.65215827]
[1726568804558,2.41317534,59136.0,59135.0,15.40206827]
[1726568805660,2.41317534,59136.0,59135.0,15.39206827]
[1726568806661,2.47384161,59136.0,59135.0,15.35625827]
[1726568807248,2.47384161,59136.0,59135.0,15.34625827]
[1726568808364,1.75224161,59136.0,59135.0,15.34625827]
[1726568808759,2.47384161,59136.0,59135.0,15.34625827]
[1726568809462,2.54325571,59136.0,59135.0,15.1600608]
[1726568809854,2.54325741,59136.0,59135.0,15.1600608]
[1726568810050,2.8139295,59136.0,59135.0,15.1600608]
[1726568810466,2.8139295,59136.0,59135.0,14.88922807]
[1726568810859,2.8139295,59136.0,59135.0,14.87048807]
[1726568811057,2.54325741,59136.0,59135.0,14.87048807]
[1726568811567,2.51058425,59136.0,59135.0,14.87048807]
[1726568812154,2.51058426,59136.0,59135.0,14.87048807]
[1726568812358,2.51058426,59136.0,59135.0,14.79035807]
[1726568812561,2.51058426,59136.0,59135.0,14.77695807]
[1726568812759,2.51058426,59136.0,59135.0,14.00544807]
[1726568814070,2.51058426,59136.0,59135.0,12.95084523]
[1726568816164,2.51058426,59136.0,59135.0,12.91367523]
[1726568816969,2.51058426,59136.0,59135.0,12.90567523]
[1726568817470,2.38050389,59136.0,59135.0,12.90567523]
[1726568819470,2.38050332,59136.0,59135.0,12.90567523]
[1726568819669,2.62729903,59136.0,59135.0,12.90567523]
[1726568820467,2.62729903,59136.0,59135.0,12.69681561]
[1726568820673,2.62729903,59136.0,59135.0,12.68994361]
[1726568821065,2.44116921,59136.0,59135.0,12.68994361]
[1726568821572,1.84116921,59136.0,59135.0,12.68994361]
[1726568821779,2.44116921,59136.0,59135.0,12.68994361]
[1726568822069,2.38050332,59136.0,59135.0,12.68994361]
[1726568822573,1.78050332,59136.0,59135.0,12.68994361]
[1726568823073,2.38050332,59136.0,59135.0,12.68994361]
[1726568824367,1.65890332,59136.0,59135.0,12.68994361]
[1726568824565,2.44116921,59136.0,59135.0,12.68994361]
[1726568824777,2.51058289,59136.0,59135.0,12.68994361]
[1726568825270,2.51058289,59136.0,59135.0,12.65422361]
[1726568825873,1.78898289,59136.0,59135.0,12.65422361]
[1726568826073,2.44116921,59136.0,59135.0,12.65422361]
[1726568826273,2.51058289,59136.0,59135.0,12.65422361]
[1726568826675,2.50179904,59136.0,59135.0,9.87083283]
[1726568826978,2.51059584,59136.0,59135.0,9.01046712]
[1726568827180,2.51059584,59136.0,59135.0,8.86379612]
[1726568827365,2.51059584,59136.0,59135.0,8.73643512]
[1726568827871,1.91059806,59136.0,59135.0,8.62225112]
[1726568828168,1.91059806,59136.0,59135.0,8.37604512]
[1726568828376,2.51059806,59136.0,59135.0,7.89682244]
[1726568828879,2.51059806,59136.0,59135.0,7.57158196]
[1726568829179,2.51059806,59136.0,59135.0,7.36930996]
[1726568829383,2.51059806,59136.0,59135.0,6.91293142]
[1726568829979,2.51059806,59136.0,59135.0,6.34131642]
[1726568830278,1.91059806,59136.0,59135.0,6.34131642]
[1726568830476,2.51059806,59136.0,59135.0,6.24627242]
[1726568830775,2.6694684,59136.0,59135.0,6.24627242]
[1726568830977,2.6694684,59136.0,59135.0,6.20108242]
[1726568831769,2.6694684,59136.0,59135.0,6.16455242]
[1726568832465,2.60005253,59136.0,59135.0,6.16455242]
[1726568832669,2.60005246,59136.0,59135.0,5.80455242]
[1726568833266,2.44118212,59136.0,59135.0,5.80455242]
[1726568834181,2.44118212,59136.0,59135.0,5.79855242]
[1726568835684,2.44118212,59136.0,59135.0,5.57903142]
[1726568835879,2.44118212,59136.0,59135.0,5.56103142]
[1726568836083,2.51060509,59136.0,59135.0,5.56103142]
[1726568836274,2.06947173,59136.0,59135.0,5.56103142]
[1726568836580,2.88922057,59136.0,59135.0,5.47514042]
[1726568836779,2.66947173,59136.0,59135.0,5.47514042]
[1726568837474,0.31288466,59136.0,59135.0,6.62790695]
[1726568837776,0.35479368,59138.0,59137.0,0.36821053]
[1726568838086,0.02267181,59140.0,59137.0,0.72981053]
[1726568838380,0.0039,59149.0,59144.0,0.084542]
[1726568838583,0.00842826,59149.0,59148.0,0.72981053]
[1726568838886,0.00253704,59152.0,59149.0,0.084536]
[1726568838887,0.0142872,59152.0,59149.0,0.084536]
[1726568839077,0.10253704,59152.0,59151.0,0.36901053]
[1726568839478,0.25005553,59152.0,59151.0,0.09828345]
[1726568840586,0.25005553,59152.0,59148.0,0.55112716]
[1726568840775,0.29504103,59151.0,59148.0,0.55008716]
[1726568841085,0.2071616,59150.0,59149.0,0.084536]
[1726568841785,0.2061616,59150.0,59149.0,0.216236]
[1726568841975,0.2061616,59150.0,59149.0,0.284436]
[1726568842177,0.2061616,59150.0,59149.0,0.285436]
[1726568842777,0.25805997,59150.0,59149.0,0.285436]
[1726568843588,0.25805997,59150.0,59149.0,0.286436]
[1726568844084,0.25805997,59150.0,59149.0,0.27717807]
[1726568845586,0.25805997,59150.0,59148.0,0.38743959]
[1726568845887,0.10421704,59152.0,59148.0,0.47093659]
[1726568845888,0.25805997,59149.0,59148.0,0.47093659]
[1726568846283,0.17992851,59149.0,59148.0,0.47093659]
[1726568846583,0.06064311,59149.0,59148.0,0.47093659]
[1726568846787,0.06064311,59149.0,59148.0,0.47193659]
[1726568847579,0.10333704,59152.0,59151.0,0.084533]
[1726568847883,0.10333704,59152.0,59151.0,0.085333]
[1726568849289,0.10633704,59152.0,59151.0,0.086333]
[1726568849793,0.10833704,59152.0,59151.0,0.087333]
[1726568851584,0.00833704,59152.0,59151.0,0.087333]
[1726568856792,0.10833704,59152.0,59151.0,0.087333]
[1726568858697,0.00833704,59152.0,59151.0,0.087333]
[1726568862693,0.06897609,59152.0,59151.0,0.087333]
[1726568863900,0.06897609,59152.0,59151.0,0.187333]
[1726568867318,0.06897609,59152.0,59151.0,0.548133]
[1726568867517,0.13835906,59152.0,59151.0,0.548133]
[1726568869222,0.13835906,59152.0,59151.0,0.44878581]
[1726568869717,0.00833704,59152.0,59151.0,0.44878581]
[1726568870224,0.00833704,59152.0,59151.0,0.53331881]
[1726568872426,0.00833704,59152.0,59151.0,0.445333]
[1726568873426,0.00833704,59152.0,59151.0,0.084533]
[1726568873623,0.00833704,59152.0,59151.0,0.445333]
[1726568878032,0.00833704,59152.0,59151.0,0.3608]
[1726568878429,0.090332,59152.0,59151.0,0.3608]
[1726568881428,0.084543,59144.0,59138.0,0.3608]
[1726568881629,0.1004,59144.0,59138.0,0.3608]
[1726568881819,0.0004,59139.0,59138.0,0.3608]
[1726568882020,0.1292,59140.0,59136.0,0.405853]
[1726568882317,0.084953,59137.0,59136.0,0.3213]
[1726568882629,0.084555,59136.0,59135.0,5.47346042]
[1726568882925,0.0004,59136.0,59135.0,5.47234042]
[1726568883130,0.1,59137.0,59135.0,5.47234042]
[1726568883329,0.1,59137.0,59136.0,0.0004]
[1726568884125,0.184553,59137.0,59136.0,0.0004]
[1726568884535,0.185553,59137.0,59136.0,0.0004]
[1726568885130,0.187553,59137.0,59136.0,0.0014]
[1726568885826,0.272106,59137.0,59136.0,0.0014]
[1726568886232,0.190553,59137.0,59136.0,0.0024]
[1726568886424,0.090553,59137.0,59136.0,0.0024]
[1726568887431,0.190553,59137.0,59136.0,0.0024]
[1726568887737,0.187553,59137.0,59136.0,0.0014]
[1726568888033,0.190553,59137.0,59136.0,0.0024]
[1726568888835,0.187553,59137.0,59136.0,0.0014]
[1726568889036,0.190553,59137.0,59136.0,0.0024]
[1726568889434,0.187553,59137.0,59136.0,0.0014]
[1726568889637,0.190553,59137.0,59136.0,0.0024]
[1726568890539,0.187553,59137.0,59136.0,0.0014]
[1726568890834,0.190553,59137.0,59136.0,0.0024]
[1726568891035,0.190553,59137.0,59136.0,0.0014]
[1726568891240,0.190553,59137.0,59136.0,0.0024]
[1726568892733,0.187553,59137.0,59136.0,0.0014]
[1726568892949,0.190553,59137.0,59136.0,0.0024]
[1726568893823,0.187553,59137.0,59136.0,0.0014]
[1726568894023,0.190553,59137.0,59136.0,0.0024]
[1726568894225,0.187553,59137.0,59136.0,0.0014]
[1726568894437,0.190553,59137.0,59136.0,0.0024]
[1726568895928,0.275106,59137.0,59136.0,0.0024]
[1726568896135,0.190553,59137.0,59136.0,0.0024]
[1726568897135,0.090553,59137.0,59136.0,0.0024]
[1726568897944,0.090553,59137.0,59135.0,4.90156205]
[1726568897945,0.706,59137.0,59135.0,4.90156205]
[1726568898158,0.760985,59136.0,59135.0,1.84551814]
[1726568898344,0.084575,59122.0,59114.0,0.0046]
[1726568898539,0.86852,59136.0,59083.0,0.0391278]
[1726568898540,0.3608,59091.0,59083.0,0.0391278]
[1726568898846,0.1008,59117.0,59068.0,0.15692952]
[1726568898847,0.8216,59084.0,59080.0,0.01411439]
[1726568899044,0.807029,59084.0,59083.0,0.50732]
[1726568899260,0.00829748,59084.0,59083.0,0.50732]
[1726568899436,0.3608,59089.0,59083.0,0.50732]
[1726568899437,0.3608,59089.0,59083.0,0.59891]
[1726568899636,0.3608,59089.0,59080.0,0.01665322]
[1726568899637,0.3608,59089.0,59088.0,0.49891]
[1726568899839,0.3608,59100.0,59088.0,0.49891]
[1726568900040,0.3608,59100.0,59099.0,0.49891]
[1726568900237,0.45318568,59100.0,59099.0,0.49891]
[1726568900444,0.55318568,59100.0,59088.0,0.1315]
[1726568900648,0.0008,59089.0,59088.0,0.1315]
[1726568900844,0.09418568,59089.0,59088.0,0.1315]
[1726568901053,0.09418568,59089.0,59088.0,0.63141]
[1726568901442,0.0008,59089.0,59088.0,0.63141]
[1726568901646,0.09418568,59089.0,59088.0,0.63141]
[1726568901954,0.10318568,59089.0,59088.0,0.63141]
[1726568902147,0.3608,59091.0,59088.0,1.23141]
[1726568902447,0.3608,59091.0,59090.0,0.49891]
[1726568902448,0.30700399,59091.0,59090.0,0.49891]
[1726568902652,0.1679118,59097.0,59090.0,0.65891]
[1726568902847,0.54244323,59100.0,59099.0,0.49891]
[1726568903438,0.37453143,59100.0,59099.0,0.49891]
[1726568904458,0.39753143,59100.0,59099.0,0.49991]
[1726568909949,0.48213743,59100.0,59099.0,0.49991]
[1726568914362,0.53408147,59100.0,59099.0,0.49991]
[1726568916051,0.53408224,59100.0,59099.0,0.49991]
[1726568916761,0.17428224,59100.0,59099.0,0.49991]
[1726568918854,0.30693069,59100.0,59099.0,0.49991]
[1726568919056,0.3588755,59100.0,59099.0,0.49991]
[1726568919363,0.17428224,59100.0,59099.0,0.49991]
[1726568920761,0.17428147,59100.0,59099.0,0.49991]
[1726568921658,0.34228893,59100.0,59099.0,0.49991]
[1726568922362,0.12233743,59100.0,59099.0,0.49991]
[1726568929267,0.17428139,59100.0,59099.0,0.49991]
[1726568931573,0.2349775,59100.0,59099.0,0.49991]
[1726568932372,0.22007459,59109.0,59108.0,0.084595]
[1726568932567,0.33270217,59109.0,59108.0,0.16930806]
[1726568932766,0.11262758,59109.0,59108.0,0.66821806]
[1726568932969,0.23466796,59110.0,59108.0,0.59931]
[1726568933169,0.21999396,59110.0,59109.0,0.740703]
[1726568933364,0.27420653,59126.0,59109.0,0.1576]
[1726568933569,0.0039,59128.0,59122.0,0.445775]
[1726568933764,0.3608,59129.0,59123.0,0.2576]
[1726568934072,0.084566,59128.0,59127.0,0.16]
[1726568934265,0.084566,59128.0,59127.0,0.5208]
[1726568934665,0.01466967,59129.0,59127.0,0.5208]
[1726568934873,0.5127,59134.0,59128.0,0.0004]
[1726568935080,0.3231,59139.0,59133.0,0.0004]
[1726568935278,0.0992846,59139.0,59138.0,0.0004]
[1726568935978,0.0147346,59139.0,59138.0,0.0004]
[1726568936176,0.14721101,59140.0,59138.0,0.0004]
[1726568936371,0.14721101,59140.0,59139.0,0.0004]
[1726568936977,0.06266101,59140.0,59139.0,0.1604]
[1726568937284,0.002,59140.0,59139.0,0.5212]
[1726568937670,0.009,59140.0,59139.0,0.5232]
[1726568938378,0.02322826,59140.0,59139.0,0.5232]
[1726568938674,0.009,59140.0,59139.0,0.5232]
[1726568940275,0.009,59140.0,59139.0,0.63225]
[1726568940881,0.093549,59140.0,59139.0,0.5477]
[1726568941468,0.178098,59140.0,59139.0,0.0024]
[1726568941766,0.084559,59133.0,59132.0,0.3608]
[1726568941972,0.244959,59133.0,59132.0,0.3608]
[1726568943275,0.244959,59133.0,59132.0,0.3618]
[1726568943276,0.250959,59133.0,59132.0,0.3618]
[1726568943781,0.250959,59133.0,59132.0,0.3628]
[1726568944082,0.2656127,59133.0,59132.0,0.3628]
[1726568944285,0.31752818,59133.0,59132.0,0.3628]
[1726568944483,0.2656127,59133.0,59132.0,0.3628]
[1726568948080,0.3501717,59133.0,59132.0,0.3628]
[1726568952381,0.46275376,59133.0,59132.0,0.3628]
[1726568952579,0.68096796,59133.0,59132.0,0.3628]
[1726568952891,0.08457,59125.0,59124.0,0.3608]
[1726568953078,0.35755206,59125.0,59124.0,0.3608]
[1726568953474,0.57579762,59125.0,59124.0,0.3608]
[1726568953994,0.35755206,59125.0,59124.0,0.3608]
[1726568954289,0.36355206,59125.0,59124.0,0.3618]
[1726568954983,0.47402721,59125.0,59124.0,0.002]
[1726568955192,0.169158,59119.0,59118.0,0.0025373]
[1726568955485,0.45039265,59119.0,59118.0,0.0025373]
[1726568956293,0.36581365,59119.0,59118.0,0.0025373]
[1726568956484,0.36882457,59119.0,59118.0,0.0025373]
[1726568957386,0.45340357,59119.0,59118.0,0.0025373]
[1726568957589,0.37782457,59119.0,59118.0,0.0035373]
[1726568957975,0.46240357,59119.0,59118.0,0.0035373]
[1726568958176,0.083587,59113.0,59112.0,0.3608]
[1726568958383,0.35657998,59113.0,59112.0,0.3608]
[1726568959089,0.35557998,59113.0,59112.0,0.3608]
[1726568959290,0.35457998,59113.0,59112.0,0.3608]
[1726568959592,0.241987,59113.0,59112.0,0.3608]
[1726568959784,0.241987,59113.0,59112.0,0.3618]
[1726568959785,0.245987,59113.0,59112.0,0.3618]
[1726568959984,0.245987,59113.0,59112.0,0.3628]
[1726568959985,0.0144,59113.0,59112.0,0.3628]
[1726568960188,0.0039,59129.0,59112.0,1.47032]
[1726568960484,0.084564,59130.0,59126.0,0.3612]
[1726568960691,0.084564,59130.0,59129.0,0.0004]
[1726568962382,0.089564,59130.0,59129.0,0.0014]
[1726568962986,0.092564,59130.0,59129.0,0.0024]
[1726568963381,0.008,59130.0,59129.0,0.0024]
[1726568963577,0.008,59130.0,59129.0,0.086965]
[1726568963989,0.008,59130.0,59129.0,0.594325]
[1726568964878,0.008,59130.0,59129.0,0.086965]
[1726568965080,0.003,59130.0,59129.0,0.085965]
[1726568965277,0.005,59130.0,59129.0,1.194325]
[1726568965891,0.003,59130.0,59129.0,1.193325]
[1726568966086,0.005,59130.0,59129.0,1.194325]
[1726568966285,0.005,59130.0,59129.0,1.193325]
[1726568966588,0.01470795,59133.0,59132.0,0.08456]
[1726568966784,0.084558,59134.0,59133.0,0.084559]
[1726568966985,0.084558,59134.0,59133.0,0.084959]
[1726568967189,0.084558,59134.0,59133.0,0.592279]
[1726568967892,0.084558,59134.0,59133.0,1.192279]
[1726568968083,0.084558,59134.0,59133.0,0.592279]
[1726568968695,0.084558,59134.0,59133.0,0.593279]
[1726568968896,0.084558,59134.0,59133.0,0.594279]
[1726568970090,0.01683572,59139.0,59133.0,0.50972]
[1726568970299,0.084555,59136.0,59135.0,0.084555]
[1726568970607,0.084557,59134.0,59133.0,0.353058]
[1726568970804,0.084957,59134.0,59133.0,0.353058]
[1726568971094,0.084957,59134.0,59133.0,0.002]
[1726568971290,0.084957,59134.0,59133.0,0.001]
[1726568971484,0.169514,59134.0,59133.0,0.002]
[1726568972104,0.169514,59134.0,59133.0,0.001]
[1726568972393,0.169514,59134.0,59132.0,0.3612]
[1726568972394,0.168118,59133.0,59132.0,0.3612]
[1726568972586,0.328518,59133.0,59132.0,0.3612]
[1726568972785,0.082959,59133.0,59132.0,0.3612]
[1726568974298,0.09772252,59133.0,59132.0,0.3612]
[1726568974493,0.14963636,59133.0,59132.0,0.3622]
[1726568974791,0.15263636,59133.0,59132.0,0.3632]
[1726568975190,0.15263635,59133.0,59132.0,0.3632]
[1726568975386,0.07007735,59133.0,59132.0,0.3632]
[1726568975583,0.13073826,59133.0,59132.0,0.3632]
[1726568976390,0.13073826,59133.0,59132.0,0.44776]
[1726568976793,0.21529726,59133.0,59132.0,0.44776]
[1726568977394,0.21529726,59133.0,59132.0,0.3632]
[1726568978192,0.13073826,59133.0,59132.0,0.3632]
[1726568978600,0.13073826,59133.0,59132.0,0.44776]
[1726568979098,0.34989789,59133.0,59132.0,0.44776]
[1726568979491,0.34989789,59133.0,59132.0,1.11508]
[1726568979996,0.28923698,59133.0,59132.0,0.60776]
[1726568980199,0.07007735,59133.0,59132.0,0.60776]
[1726568980598,0.15463635,59133.0,59132.0,0.44776]
[1726568982499,0.10272252,59133.0,59132.0,0.44776]
[1726568983705,0.01816352,59133.0,59132.0,0.44776]
[1726568986196,0.01816352,59133.0,59132.0,0.95508]
[1726568986397,0.0034,59133.0,59132.0,1.03964]
[1726568988705,0.0034,59133.0,59132.0,1.1242]
[1726568989407,0.05530466,59133.0,59132.0,1.1242]
[1726568990194,0.05530466,59133.0,59132.0,1.7242]
[1726568991902,0.05530466,59133.0,59132.0,1.63964]
[1726568994207,0.05530466,59133.0,59132.0,1.7242]
[1726568997414,0.0034,59133.0,59132.0,1.7242]
[1726569000121,0.0034,59133.0,59132.0,1.1242]
[1726569000615,0.0034,59133.0,59132.0,0.53232]
[1726569001024,0.0034,59133.0,59132.0,1.63964]
[1726569001223,0.0024,59139.0,59135.0,0.169112]
[1726569001409,0.0024,59139.0,59138.0,0.689904]
[1726569001716,0.0024,59139.0,59138.0,0.690304]
[1726569002418,0.0024,59139.0,59138.0,1.797584]
[1726569003312,0.0024,59139.0,59138.0,1.798584]
[1726569003714,0.01670923,59139.0,59138.0,0.606752]
[1726569003918,0.0024,59139.0,59138.0,1.714032]
[1726569004117,0.0024,59139.0,59138.0,1.199584]
[1726569004321,0.0024,59139.0,59138.0,1.115032]
[1726569004626,0.05429752,59139.0,59138.0,1.115032]
[1726569005115,0.05429752,59139.0,59138.0,0.607752]
[1726569005417,0.05429752,59139.0,59138.0,1.199584]
[1726569005624,0.05429752,59139.0,59138.0,1.115032]
[1726569005812,0.05429752,59139.0,59138.0,0.607752]
[1726569006139,0.13884752,59139.0,59138.0,0.3632]
[1726569006335,0.22339752,59139.0,59138.0,0.3632]
[1726569006510,0.28403936,59139.0,59138.0,0.3632]
[1726569007117,0.1994972,59139.0,59138.0,0.447752]
[1726569007315,0.1994972,59139.0,59138.0,0.607752]
[1726569007919,0.13885536,59139.0,59138.0,0.607752]
[1726569008526,0.05430536,59139.0,59138.0,0.607752]
[1726569011725,0.05430536,59139.0,59138.0,0.968552]
[1726569012425,0.13885536,59139.0,59138.0,0.968552]